bitfinex-derivatives/quotes_BTCF0:USTF0_20210105
["timestamp","ask_amount","ask_price","bid_price","bid_amount"]
[1609843067603,0.13632608,31181.0,31178.0,0.13632608]
[1609843067802,0.13632608,31181.0,31165.0,4.20045]
[1609843069504,0.13632608,31181.0,31180.0,0.13632608]
[1609843071707,0.13632608,31181.0,31165.0,4.20045]
[1609843072708,0.11772,31186.0,31165.0,4.20045]
[1609843072909,0.0955,31198.0,31165.0,4.20045]
[1609843073509,0.0955,31198.0,31186.0,0.13632608]
[1609843075512,0.13632608,31187.0,31186.0,0.13632608]
[1609843075715,0.25329608,31187.0,31186.0,0.13632608]
[1609843076513,0.25329608,31187.0,31165.0,4.20045]
[1609843077013,0.25329608,31187.0,31165.0,0.11785]
[1609843077214,0.25329608,31187.0,31153.0,3.9815]
[1609843077616,0.21347,31187.0,31178.0,0.13632608]
[1609843077816,0.11697,31187.0,31178.0,0.13632608]
[1609843078014,0.11697,31187.0,31164.0,0.12008]
[1609843078815,0.21327,31187.0,31164.0,0.12008]
[1609843079614,0.21327,31187.0,31168.0,0.13632608]
[1609843081315,0.11697,31187.0,31168.0,0.13632608]
[1609843081516,0.13632608,31190.0,31186.0,0.13632608]
[1609843081716,0.13632608,31190.0,31168.0,4.1722]
[1609843082718,0.00852311,31202.0,31168.0,4.1722]
[1609843083118,0.09765,31205.0,31168.0,4.1722]
[1609843083317,0.00858414,31210.0,31168.0,4.1722]
[1609843083618,0.00858414,31210.0,31203.0,0.13632608]
[1609843083818,0.7175578,31212.0,31203.0,0.13632608]
[1609843083819,0.11145,31212.0,31203.0,0.13632608]
[1609843084018,0.00860844,31216.0,31203.0,3.77922608]
[1609843084617,0.50654746,31217.0,31203.0,3.77922608]
[1609843084818,0.00862679,31222.0,31203.0,3.91035608]
[1609843085620,0.00862679,31222.0,31221.0,0.13632608]
[1609843086223,0.13632608,31229.0,31221.0,0.13632608]
[1609843086422,0.00869729,31233.0,31221.0,0.13632608]
[1609843087024,0.0965,31232.0,31221.0,0.13632608]
[1609843087225,0.0947,31237.0,31210.0,0.13961]
[1609843087423,0.0947,31237.0,31203.0,3.77403]
[1609843087623,0.13632608,31216.0,31215.0,0.13632608]
[1609843088023,0.13632608,31216.0,31193.0,4.7607]
[1609843089628,0.13632608,31199.0,31193.0,4.7607]
[1609843089826,0.13632608,31199.0,31161.0,2.50131618]
[1609843090026,0.13632608,31199.0,31174.0,4.4511]
[1609843091730,0.12325,31203.0,31190.0,0.13632608]
[1609843093134,0.21995,31203.0,31180.0,0.13874]
[1609843093730,0.21995,31203.0,31182.0,0.13632608]
[1609843095633,0.13632608,31183.0,31182.0,0.13632608]
[1609843097636,0.09609,31186.0,31182.0,0.13632608]
[1609843099740,0.13632608,31199.0,31182.0,0.13632608]
[1609843101142,0.13632608,31199.0,31182.0,0.23678608]
[1609843101744,0.12325,31203.0,31191.0,0.13632608]
[1609843101943,0.0947,31207.0,31191.0,0.13632608]
[1609843103644,0.13632608,31192.0,31191.0,0.13632608]
[1609843103844,0.13632608,31192.0,31173.0,0.12163]
[1609843104044,0.13632608,31192.0,31161.0,3.9103]
[1609843104944,0.0956,31191.0,31161.0,3.9103]
[1609843105644,0.0956,31191.0,31166.0,0.13632608]
[1609843106046,0.7197,31191.0,31166.0,0.13632608]
[1609843106845,0.7197,31191.0,31161.0,4.05374]
[1609843107647,0.7197,31191.0,31163.0,0.13632608]
[1609843109348,0.6241,31191.0,31163.0,0.13632608]
[1609843109749,0.6241,31191.0,31161.0,4.05374]
[1609843111851,0.6241,31191.0,31172.0,0.13632608]
[1609843112653,0.7215,31191.0,31172.0,0.13632608]
[1609843113756,0.13632608,31173.0,31172.0,0.13632608]
[1609843114357,0.13632608,31173.0,31161.0,0.14344]
[1609843114753,0.13632608,31173.0,31147.0,2.14174878]
[1609843115753,0.14502,31176.0,31162.0,0.13632608]
[1609843117757,0.13632608,31163.0,31162.0,0.13632608]
[1609843118559,0.14502,31176.0,31162.0,0.13632608]
[1609843119759,0.14502,31176.0,31171.0,0.13632608]
[1609843120460,0.09766,31183.0,31157.0,0.12804]
[1609843120660,0.0086714,31184.0,31157.0,0.12804]
[1609843120860,0.00860704,31182.0,31157.0,0.12804]
[1609843121061,0.12521704,31182.0,31144.0,4.9228]
[1609843121762,0.13632608,31163.0,31161.0,0.13632608]
[1609843123561,0.13632608,31163.0,31133.0,2.13825779]
[1609843123763,4.3967,31167.0,31148.0,0.13632608]
[1609843124161,4.3967,31167.0,31148.0,0.10237]
[1609843124562,4.3967,31167.0,31145.0,0.09486]
[1609843124761,4.54239,31167.0,31145.0,0.09486]
[1609843124963,0.096,31166.0,31145.0,0.09486]
[1609843125561,0.096,31166.0,31145.0,6e-05]
[1609843125761,0.13632608,31146.0,31133.0,0.13632608]
[1609843126564,0.13632608,31146.0,31123.0,0.0963]
[1609843126967,0.23292608,31146.0,31115.0,5.45263878]
[1609843127164,0.23292608,31146.0,31115.0,4.9605]
[1609843127566,0.23292608,31146.0,31108.0,2.41886287]
[1609843127767,4.8647,31143.0,31125.0,0.13632608]
[1609843127966,4.8647,31143.0,31106.0,1.77177309]
[1609843128367,0.0966,31146.0,31106.0,1.77177309]
[1609843128570,4.7111,31140.0,31106.0,0.10701]
[1609843128767,0.10785,31147.0,31106.0,0.10701]
[1609843128967,0.10785,31147.0,31114.0,3.9149]
[1609843129167,0.10785,31147.0,31114.0,4.05732]
[1609843129571,0.00848801,31157.0,31114.0,4.05732]
[1609843129768,0.13632608,31140.0,31139.0,0.13632608]
[1609843130169,0.10821,31155.0,31139.0,0.13632608]
[1609843131772,0.13632608,31140.0,31139.0,0.13632608]
[1609843133273,0.13632608,31140.0,31138.0,0.11131]
[1609843135679,0.10821,31155.0,31133.0,3.82122608]
[1609843135880,0.00848801,31157.0,31147.0,0.13632608]
[1609843136280,0.0949,31156.0,31147.0,0.13632608]
[1609843136481,0.00848801,31157.0,31147.0,0.13632608]
[1609843137285,0.00848801,31157.0,31149.0,4.8557]
[1609843137782,0.00848801,31157.0,31156.0,0.13632608]
[1609843138383,0.00848572,31161.0,31156.0,0.13632608]
[1609843139184,0.13632608,31163.0,31156.0,0.13632608]
[1609843139784,0.13632608,31163.0,31162.0,0.13632608]
[1609843140184,0.11661,31182.0,31162.0,0.13632608]
[1609843140584,0.00853864,31184.0,31162.0,0.13632608]
[1609843140783,0.00853864,31184.0,31168.0,3.9395]
[1609843141884,0.00853864,31184.0,31183.0,0.13632608]
[1609843142490,0.00854747,31187.0,31183.0,0.13632608]
[1609843144599,0.13632608,31189.0,31183.0,0.13632608]
[1609843145197,0.13632608,31189.0,31183.0,4.37962608]
[1609843145399,0.00854959,31197.0,31183.0,4.37962608]
[1609843145800,0.00854959,31197.0,31196.0,0.13632608]
[1609843146200,0.00854959,31197.0,31196.0,0.73292608]
[1609843146601,1.67655709,31221.0,31196.0,0.73292608]
[1609843146602,3.7486,31238.0,31196.0,0.73292608]
[1609843146801,0.2942,31242.0,31196.0,0.13632608]
[1609843147001,0.2942,31242.0,31205.0,4.0372]
[1609843147404,0.0957,31242.0,31205.0,4.0372]
[1609843147602,0.2798,31247.0,31205.0,4.0372]
[1609843147802,0.13632608,31224.0,31221.0,0.13632608]
[1609843148003,1.61372225,31224.0,31221.0,0.13632608]
[1609843148403,0.34451561,31217.0,31204.0,0.0956]
[1609843148602,0.34451561,31217.0,31208.0,4.4344]
[1609843148903,0.14421561,31217.0,31208.0,4.4344]
[1609843149504,0.14421561,31217.0,31204.0,0.0956]
[1609843149505,0.14421561,31217.0,31209.0,0.0975]
[1609843149704,0.14421561,31217.0,31209.0,0.21794]
[1609843149907,0.13632608,31225.0,31216.0,0.13632608]
[1609843150307,0.13632608,31225.0,31216.0,0.26044608]
[1609843151307,0.61059656,31236.0,31216.0,0.26044608]
[1609843151708,0.61065796,31238.0,31216.0,0.26044608]
[1609843151907,0.61065796,31238.0,31237.0,0.13632608]
[1609843152307,0.61065796,31238.0,31233.0,0.12469]
[1609843153008,0.13632608,31241.0,31233.0,0.12469]
[1609843153207,0.13632608,31241.0,31219.0,5.3062]
[1609843153809,0.13632608,31220.0,31219.0,5.44252608]
[1609843154708,0.75107895,31242.0,31219.0,0.13632608]
[1609843155712,0.75107895,31242.0,31220.0,0.6317]
[1609843155911,0.13632608,31241.0,31219.0,0.0961]
[1609843156112,0.13632608,31241.0,31228.0,5.0945]
[1609843156311,0.13632608,31241.0,31228.0,5.23339]
[1609843156511,0.13632608,31241.0,31228.0,0.13889]
[1609843158013,0.13632608,31229.0,31228.0,0.13889]
[1609843158813,0.14165,31242.0,31228.0,0.13889]
[1609843159213,0.71687568,31251.0,31228.0,0.13889]
[1609843159214,0.60853829,31250.0,31228.0,0.13889]
[1609843160015,0.60853829,31250.0,31236.0,0.13632608]
[1609843160415,0.108,31251.0,31236.0,0.71742608]
[1609843160815,0.60852412,31252.0,31236.0,0.71742608]
[1609843161014,0.60852412,31252.0,31236.0,0.5811]
[1609843161215,0.60850686,31256.0,31236.0,0.5811]
[1609843161919,0.13632608,31237.0,31236.0,0.5811]
[1609843164117,0.13632608,31237.0,31228.0,0.13889]
[1609843164318,0.13632608,31237.0,31218.0,5.1357]
[1609843165121,0.24890608,31237.0,31218.0,5.1357]
[1609843165919,0.13632608,31219.0,31218.0,5.1357]
[1609843166320,0.11258,31237.0,31218.0,5.1357]
[1609843167923,0.11258,31237.0,31221.0,0.13632608]
[1609843169924,0.13632608,31223.0,31221.0,0.13632608]
[1609843171027,0.13632608,31223.0,31218.0,5.1357]
[1609843172029,0.13632608,31223.0,31222.0,0.13632608]
[1609843173530,0.13632608,31223.0,31218.0,5.1357]
[1609843173931,0.2285,31244.0,31219.0,0.13632608]
[1609843174332,0.2285,31244.0,31218.0,5.1357]
[1609843175032,0.1322,31244.0,31218.0,5.1357]
[1609843175333,0.01693035,31246.0,31218.0,5.1357]
[1609843175935,0.01693035,31246.0,31219.0,0.13632608]
[1609843177135,0.01693035,31246.0,31218.0,5.1357]
[1609843177335,0.13464035,31246.0,31218.0,5.1357]
[1609843178037,0.13632608,31219.0,31218.0,5.1357]
[1609843182044,0.13725,31229.0,31218.0,5.27202608]
[1609843182445,0.13725,31229.0,31218.0,5.1357]
[1609843183345,0.11382877,31242.0,31218.0,5.1357]
[1609843183548,0.11382877,31242.0,31200.0,0.0964]
[1609843184047,0.11382877,31242.0,31218.0,0.13632608]
[1609843184248,0.00354239,31239.0,31218.0,0.13632608]
[1609843184447,0.12681239,31239.0,31218.0,0.13632608]
[1609843185451,0.12327,31239.0,31218.0,0.13632608]
[1609843186052,0.12327,31239.0,31222.0,0.13632608]
[1609843187253,0.12327,31239.0,31222.0,0.13436165]
[1609843187451,0.12327,31239.0,31217.0,4.8109]
[1609843187650,0.48076923,31222.0,31217.0,4.8109]
[1609843187852,0.58399923,31222.0,31217.0,4.8109]
[1609843188051,0.13632608,31218.0,31217.0,4.94722608]
[1609843188953,0.58399923,31222.0,31217.0,4.94722608]
[1609843189952,0.58399923,31222.0,31221.0,0.13632608]
[1609843191954,0.58399923,31222.0,31213.0,0.13632608]
[1609843192953,0.58399923,31222.0,31210.0,4.4065]
[1609843194057,0.13632608,31211.0,31198.0,0.13632608]
[1609843194256,0.26366608,31211.0,31198.0,0.13632608]
[1609843196061,0.26366608,31211.0,31210.0,0.13632608]
[1609843196262,0.26366608,31211.0,31210.0,0.80922608]
[1609843196662,0.26366608,31211.0,31210.0,0.6729]
[1609843202071,0.12734,31211.0,31210.0,0.6729]
[1609843202470,0.58758314,31222.0,31210.0,0.6729]
[1609843203272,0.58399923,31222.0,31210.0,0.6729]
[1609843204074,0.58399923,31222.0,31221.0,0.13632608]
[1609843205774,0.27459923,31222.0,31221.0,0.13632608]
[1609843205974,0.00360843,31232.0,31221.0,0.13632608]
[1609843206380,0.0036536,31237.0,31221.0,0.13632608]
[1609843206777,0.0036536,31237.0,31222.0,0.11778]
[1609843208080,0.0036536,31237.0,31227.0,0.13632608]
[1609843208281,0.0036536,31237.0,31230.0,0.6974]
[1609843208482,0.64538748,31239.0,31230.0,0.6974]
[1609843208483,0.12692547,31239.0,31230.0,0.6974]
[1609843209286,0.00365547,31239.0,31230.0,0.10043]
[1609843209685,0.00365547,31239.0,31236.0,5.2402]
[1609843210084,0.00365547,31239.0,31238.0,0.13632608]
[1609843210686,0.00365535,31240.0,31238.0,0.13632608]
[1609843211086,0.00364409,31249.0,31238.0,0.13632608]
[1609843211486,0.00364409,31249.0,31248.0,5.2366]
[1609843212088,0.00364409,31249.0,31248.0,5.37292608]
[1609843213989,7.041e-05,31250.0,31248.0,5.37292608]
[1609843214589,0.52079687,31252.0,31248.0,5.37292608]
[1609843215191,0.51831955,31271.0,31248.0,5.37292608]
[1609843215889,0.51799564,31269.0,31248.0,5.37292608]
[1609843216091,0.64474564,31269.0,31253.0,0.13632608]
[1609843217892,0.64474564,31269.0,31262.0,4.0642]
[1609843218092,0.78107172,31269.0,31268.0,0.13632608]
[1609843218292,0.78107172,31269.0,31268.0,0.68982608]
[1609843218792,0.64474564,31269.0,31268.0,0.68982608]
[1609843219194,0.59760791,31269.0,31268.0,0.68982608]
[1609843219396,1.21871167,31269.0,31268.0,0.68982608]
[1609843220295,0.12675,31269.0,31268.0,0.68982608]
[1609843220495,0.51911236,31278.0,31268.0,0.68982608]
[1609843221999,0.51959114,31283.0,31275.0,0.13632608]
[1609843222796,0.51959114,31283.0,31268.0,0.5535]
[1609843223398,0.51824416,31286.0,31268.0,0.5535]
[1609843224198,0.13632608,31269.0,31268.0,0.5535]
[1609843224401,0.13632608,31269.0,31265.0,0.13224]
[1609843225001,0.13632608,31269.0,31258.0,0.14229]
[1609843225200,0.13632608,31269.0,31257.0,4.5729]
[1609843226002,0.13632608,31258.0,31257.0,4.5729]
[1609843226602,0.13632608,31258.0,31251.0,0.26912608]
[1609843226805,0.13632608,31258.0,31251.0,0.1328]
[1609843227206,0.13632608,31258.0,31245.0,3.9731]
[1609843228104,0.13632608,31246.0,31245.0,3.9731]
[1609843232512,0.13632608,31246.0,31240.0,0.1]
[1609843234111,0.13632608,31241.0,31240.0,0.23632608]
[1609843235814,0.10561,31255.0,31240.0,0.23632608]
[1609843236014,0.10811,31262.0,31240.0,0.23632608]
[1609843236215,0.13632608,31259.0,31257.0,0.13632608]
[1609843236414,0.23297608,31259.0,31257.0,5.12052608]
[1609843236614,0.09665,31259.0,31257.0,5.12052608]
[1609843237815,0.09665,31259.0,31257.0,0.13632608]
[1609843240015,0.13632608,31267.0,31257.0,0.13632608]
[1609843240216,0.13632608,31267.0,31254.0,4.8368]
[1609843240416,0.13632608,31267.0,31255.0,0.13096]
[1609843241518,0.13632608,31267.0,31254.0,4.8368]
[1609843242218,0.13632608,31255.0,31254.0,4.8368]
[1609843252728,0.13632608,31255.0,31250.0,0.1]
[1609843253529,0.0949,31254.0,31250.0,0.1]
[1609843253929,0.13632608,31255.0,31250.0,0.1]
[1609843254131,0.13632608,31251.0,31240.0,0.1]
[1609843255234,0.0969,31250.0,31240.0,0.1]
[1609843256238,0.13632608,31241.0,31240.0,0.1]
[1609843256435,0.23290608,31241.0,31240.0,0.1]
[1609843257936,0.22930608,31241.0,31240.0,0.1]
[1609843258137,0.09658,31241.0,31240.0,0.23632608]
[1609843258739,0.13272,31249.0,31240.0,0.80472608]
[1609843259537,0.13272,31249.0,31240.0,0.23632608]
[1609843259738,0.50770432,31251.0,31242.0,4.0103]
[1609843259938,0.50728102,31250.0,31242.0,4.0103]
[1609843260138,0.50728102,31250.0,31249.0,0.13632608]
[1609843260538,0.51406302,31269.0,31249.0,0.13632608]
[1609843260737,0.51406302,31269.0,31249.0,5.13012608]
[1609843260938,0.13775,31270.0,31249.0,5.24472608]
[1609843261138,0.51379339,31273.0,31249.0,5.24472608]
[1609843261539,0.51379339,31273.0,31249.0,0.13632608]
[1609843262139,0.51379339,31273.0,31256.0,0.13632608]
[1609843263040,0.51347717,31272.0,31251.0,3.7671]
[1609843263439,0.62464717,31272.0,31240.0,0.24734]
[1609843264140,0.13632608,31241.0,31240.0,0.24734]
[1609843264340,0.13632608,31241.0,31240.0,0.1]
[1609843272153,0.11573,31251.0,31240.0,0.23632608]
[1609843272552,0.78874694,31257.0,31240.0,0.23632608]
[1609843273553,0.2781,31257.0,31240.0,0.23632608]
[1609843273752,0.51057642,31259.0,31240.0,0.23632608]
[1609843274153,0.51057642,31259.0,31256.0,0.13632608]
[1609843274354,0.51133976,31263.0,31256.0,0.13632608]
[1609843276057,0.0947,31264.0,31250.0,3.9946]
[1609843276256,0.13632608,31251.0,31240.0,0.1]
[1609843276459,0.24474608,31251.0,31240.0,0.1]
[1609843276858,0.24474608,31251.0,31240.0,0.0922]
[1609843278060,0.24474608,31251.0,31242.0,4.6887]
[1609843278260,0.13632608,31243.0,31242.0,4.6887]
[1609843278459,0.24909608,31243.0,31242.0,4.6887]
[1609843279060,0.24909608,31243.0,31240.0,0.0922]
[1609843280160,0.24909608,31243.0,31242.0,0.13632608]
[1609843281164,0.11277,31243.0,31242.0,0.70912608]
[1609843281566,0.10842,31251.0,31242.0,0.70912608]
[1609843281766,0.51063329,31254.0,31242.0,0.70912608]
[1609843282166,0.64695937,31254.0,31253.0,0.13632608]
[1609843283766,0.64695937,31254.0,31245.0,5.025]
[1609843283968,0.77582937,31254.0,31245.0,5.025]
[1609843284169,0.13632608,31246.0,31245.0,5.16132608]
[1609843284368,0.24393608,31246.0,31245.0,0.13632608]
[1609843284768,0.24393608,31246.0,31241.0,4.73]
[1609843286171,0.10761,31246.0,31243.0,0.13632608]
[1609843288175,0.13632608,31244.0,31243.0,0.13632608]
[1609843292081,0.12887,31254.0,31243.0,0.13632608]
[1609843292282,0.51310886,31260.0,31253.0,0.13632608]
[1609843292682,0.51310886,31260.0,31255.0,4.8545]
[1609843294384,0.13632608,31256.0,31255.0,4.8545]
[1609843294582,0.25751608,31256.0,31240.0,0.0922]
[1609843294785,0.25751608,31256.0,31246.0,3.6297]
[1609843296286,0.12119,31256.0,31251.0,0.13632608]
[1609843298389,0.13632608,31252.0,31251.0,0.13632608]
[1609843301093,0.13632608,31252.0,31251.0,5.24942608]
[1609843310405,0.13632608,31252.0,31251.0,0.13632608]
[1609843311506,0.13632608,31252.0,31242.0,4.6722]
[1609843311908,0.13632608,31252.0,31240.0,0.0922]
[1609843312308,0.13632608,31241.0,31240.0,0.0922]
[1609843314609,0.13632608,31241.0,31230.0,4.0271]
[1609843314810,0.13632608,31241.0,31230.0,0.1]
[1609843315408,4.15322608,31241.0,31230.0,0.1]
[1609843316410,0.13632608,31231.0,31230.0,0.1]
[1609843316610,0.26454608,31231.0,31221.0,3.7125]
[1609843316809,0.26454608,31231.0,31220.0,0.1]
[1609843318311,0.13632608,31221.0,31209.0,4.9852]
[1609843318713,0.27314608,31221.0,31209.0,4.9852]
[1609843320115,0.27314608,31221.0,31193.0,0.0963]
[1609843320314,0.27314608,31221.0,31192.0,0.49112447]
[1609843320515,0.13682,31221.0,31208.0,0.13632608]
[1609843322217,0.13682,31221.0,31208.0,0.68182608]
[1609843322416,0.13632608,31209.0,31208.0,0.68182608]
[1609843323316,0.13682,31221.0,31208.0,0.68182608]
[1609843323515,0.13682,31221.0,31208.0,0.13632608]
[1609843323715,0.12822,31231.0,31214.0,5.2534]
[1609843323916,0.50536239,31237.0,31214.0,5.2534]
[1609843324117,0.50536239,31237.0,31210.0,0.09258]
[1609843324318,0.50562375,31242.0,31231.0,0.13632608]
[1609843324918,0.10772,31244.0,31231.0,0.13632608]
[1609843325117,0.50717036,31249.0,31231.0,0.13632608]
[1609843326220,0.50717036,31249.0,31230.0,4.9412]
[1609843326221,0.62808036,31249.0,31230.0,4.9412]
[1609843326421,0.13632608,31231.0,31230.0,4.9412]
[1609843326820,0.13632608,31231.0,31226.0,0.13632608]
[1609843328422,0.13632608,31231.0,31230.0,0.13632608]
[1609843332129,0.13632608,31231.0,31220.0,4.3487]
[1609843332326,0.10665,31232.0,31222.0,0.13632608]
[1609843332526,4.8558,31248.0,31222.0,0.13632608]
[1609843332928,4.8558,31248.0,31220.0,4.3487]
[1609843333427,0.00871195,31246.0,31220.0,4.3487]
[1609843334329,0.51263849,31247.0,31220.0,4.3487]
[1609843334529,0.13632608,31225.0,31222.0,0.13632608]
[1609843335434,0.09756,31233.0,31222.0,0.13632608]
[1609843336231,0.0947,31232.0,31222.0,0.13632608]
[1609843336431,0.0947,31232.0,31231.0,0.13632608]
[1609843336631,0.09756,31233.0,31231.0,0.13632608]
[1609843337031,0.09756,31233.0,31220.0,4.3487]
[1609843339634,4.7589,31248.0,31220.0,4.3487]
[1609843340133,4.8535,31248.0,31220.0,4.3487]
[1609843340437,4.8535,31248.0,31222.0,0.13632608]
[1609843340635,0.0946,31248.0,31222.0,0.13632608]
[1609843340834,0.51338197,31251.0,31232.0,5.0191]
[1609843342636,0.00872555,31251.0,31232.0,5.0191]
[1609843343236,0.00872555,31251.0,31225.0,0.095]
[1609843343438,4.2345,31252.0,31225.0,0.095]
[1609843343736,4.2345,31252.0,31223.0,0.0954]
[1609843344441,0.13632608,31242.0,31241.0,0.13632608]
[1609843344939,0.24379608,31242.0,31241.0,0.13632608]
[1609843346640,0.24379608,31242.0,31233.0,3.7861]
[1609843348247,0.24379608,31242.0,31226.0,0.0952]
[1609843348447,0.24379608,31242.0,31239.0,0.13632608]
[1609843348647,0.13632608,31242.0,31239.0,0.13632608]
[1609843351549,0.12119,31256.0,31239.0,0.13632608]
[1609843351750,0.00874861,31265.0,31239.0,0.13632608]
[1609843351951,0.00874861,31265.0,31240.0,5.2802]
[1609843352453,0.00874861,31265.0,31244.0,0.13632608]
[1609843354056,0.02606829,31265.0,31244.0,0.13632608]
[1609843354553,0.13632608,31245.0,31244.0,0.13632608]
[1609843359862,0.09968,31256.0,31244.0,5.23182608]
[1609843360261,0.00874658,31267.0,31244.0,5.23182608]
[1609843360461,0.00874658,31267.0,31244.0,0.13632608]
[1609843360661,0.00874658,31267.0,31258.0,0.13632608]
[1609843361061,0.00874658,31267.0,31262.0,5.1211]
[1609843362565,0.00874658,31267.0,31266.0,0.13632608]
[1609843362864,0.01732759,31268.0,31266.0,0.13632608]
[1609843362865,0.02607533,31268.0,31266.0,0.13632608]
[1609843363565,0.13632608,31269.0,31266.0,0.13632608]
[1609843365369,0.13632608,31269.0,31262.0,5.1211]
[1609843365570,0.13632608,31269.0,31262.0,5.24513]
[1609843366770,0.12563,31281.0,31262.0,5.24513]
[1609843366771,0.13632608,31263.0,31262.0,5.24513]
[1609843366973,0.13632608,31263.0,31262.0,0.12403]
[1609843367172,0.13632608,31263.0,31259.0,0.13632608]
[1609843371271,0.13632608,31263.0,31262.0,4.6788]
[1609843371673,0.12563,31281.0,31262.0,4.6788]
[1609843371873,0.12563,31281.0,31260.0,0.12665]
[1609843372074,0.11213,31281.0,31267.0,4.71]
[1609843372674,0.13632608,31268.0,31267.0,4.71]
[1609843372875,0.13632608,31268.0,31260.0,0.12665]
[1609843373078,0.13632608,31268.0,31259.0,0.13632608]
[1609843374675,0.13632608,31260.0,31259.0,0.13632608]
[1609843377878,0.13969,31273.0,31259.0,0.13632608]
[1609843378078,0.11213,31281.0,31259.0,0.13632608]
[1609843378280,0.02592899,31283.0,31269.0,3.8156]
[1609843378479,0.00870414,31285.0,31269.0,3.8156]
[1609843378680,0.13632608,31283.0,31278.0,0.13632608]
[1609843378879,0.00870414,31285.0,31278.0,0.13632608]
[1609843379078,0.00870414,31285.0,31283.0,3.8612]
[1609843380080,0.02603333,31292.0,31283.0,3.8612]
[1609843380679,0.13632608,31284.0,31283.0,3.8612]
[1609843380881,0.13632608,31284.0,31278.0,0.13632608]
[1609843381280,0.13632608,31284.0,31274.0,3.7563]
[1609843382781,0.11701,31288.0,31271.0,0.09166]
[1609843382981,0.11701,31288.0,31264.0,0.14587]
[1609843383982,0.11701,31288.0,31253.0,0.0957]
[1609843384181,0.11701,31288.0,31270.0,5.2984]
[1609843384382,0.14305315,31288.0,31260.0,0.14033]
[1609843384581,5.2539,31286.0,31260.0,0.14033]
[1609843384782,5.2539,31286.0,31271.0,0.13632608]
[1609843384982,5.2539,31286.0,31260.0,0.14033]
[1609843386784,0.11701,31288.0,31263.0,0.13632608]
[1609843386985,0.00874494,31289.0,31263.0,0.13632608]
[1609843387186,0.00871925,31284.0,31263.0,0.13632608]
[1609843387386,0.14653925,31284.0,31263.0,0.13632608]
[1609843387787,0.13782,31284.0,31263.0,0.13632608]
[1609843388789,0.13632608,31264.0,31263.0,0.13632608]
[1609843394695,0.13632608,31264.0,31257.0,0.13632608]
[1609843395095,0.13632608,31264.0,31250.0,4.35655]
[1609843395397,0.13632608,31264.0,31250.0,0.14815]
[1609843395601,4.9323,31263.0,31250.0,0.14815]
[1609843395797,4.9323,31263.0,31239.0,3.8708]
[1609843396797,0.13632608,31240.0,31239.0,3.8708]
[1609843396998,0.13632608,31240.0,31233.0,0.13632608]
[1609843398697,0.13632608,31234.0,31233.0,0.13632608]
[1609843399297,0.14544,31252.0,31233.0,0.13632608]
[1609843399498,0.14544,31252.0,31239.0,3.8769]
[1609843400801,0.14544,31252.0,31243.0,0.13632608]
[1609843402003,0.53221458,31264.0,31243.0,0.13632608]
[1609843402604,0.53221458,31264.0,31239.0,3.9742]
[1609843402807,0.53221458,31264.0,31239.0,0.0973]
[1609843403005,0.53221458,31264.0,31251.0,5.1622]
[1609843404007,0.66854066,31264.0,31262.0,0.13632608]
[1609843404610,0.13632608,31264.0,31262.0,0.13632608]
[1609843413119,0.13632608,31264.0,31259.0,3.9943]
[1609843414020,0.13632608,31264.0,31263.0,0.13632608]
[1609843414220,0.13632608,31264.0,31263.0,4.98642608]
[1609843414819,0.13632608,31264.0,31263.0,0.13632608]
[1609843415721,0.13632608,31264.0,31257.0,0.09603]
[1609843415920,0.13632608,31264.0,31253.0,4.059]
[1609843416121,0.13632608,31254.0,31253.0,3.9631]
[1609843416322,0.13632608,31254.0,31250.0,0.14174]
[1609843416722,0.13632608,31254.0,31249.0,0.13632608]
[1609843417622,0.13632608,31254.0,31241.0,4.0281]
[1609843417824,0.13632608,31254.0,31240.0,2.53420529]
[1609843418022,0.13632608,31258.0,31252.0,0.13632608]
[1609843418222,0.13632608,31258.0,31257.0,4.5852]
[1609843419126,0.1478,31273.0,31257.0,4.5852]
[1609843419527,0.00888298,31281.0,31257.0,4.5852]
[1609843420026,0.13632608,31266.0,31265.0,0.13632608]
[1609843420226,0.13632608,31266.0,31265.0,0.88432608]
[1609843424030,0.11288,31274.0,31265.0,0.88432608]
[1609843425033,0.11288,31274.0,31265.0,0.13632608]
[1609843425230,0.00888084,31279.0,31269.0,5.2395]
[1609843426134,0.13632608,31274.0,31271.0,0.13632608]
[1609843427033,0.13632608,31274.0,31269.0,5.2395]
[1609843428234,0.13632608,31270.0,31269.0,5.2395]
[1609843428837,0.13632608,31270.0,31267.0,0.13632608]
[1609843429734,0.14383,31275.0,31267.0,0.13632608]
[1609843430236,0.28015608,31275.0,31274.0,0.13632608]
[1609843431737,0.14383,31275.0,31274.0,0.13632608]
[1609843432037,0.02664649,31283.0,31274.0,0.13632608]
[1609843432237,0.02664649,31283.0,31280.0,0.13632608]
[1609843432637,0.02664649,31283.0,31259.0,0.09599]
[1609843433038,0.66398598,31284.0,31259.0,0.09599]
[1609843433039,0.14676046,31284.0,31259.0,0.09599]
[1609843433440,0.14676046,31284.0,31260.0,0.0963]
[1609843434242,0.14676046,31284.0,31278.0,0.13632608]
[1609843434643,0.14676046,31284.0,31260.0,0.0963]
[1609843436245,0.14676046,31284.0,31259.0,0.09599]
[1609843436446,0.14676046,31284.0,31253.0,0.0951]
[1609843436645,0.14676046,31284.0,31249.0,2.14358457]
[1609843437547,0.14676046,31284.0,31249.0,2.24088457]
[1609843437749,0.13782,31284.0,31251.0,2.14375075]
[1609843437949,0.00894769,31286.0,31251.0,2.25713075]
[1609843438349,0.00894769,31286.0,31268.0,0.13632608]
[1609843438550,0.00894509,31280.0,31268.0,0.13632608]
[1609843438749,0.10913509,31280.0,31268.0,0.13632608]
[1609843438949,0.10913509,31280.0,31251.0,0.11338]
[1609843439150,0.10913509,31280.0,31252.0,0.0956]
[1609843439554,0.10019,31280.0,31252.0,0.0956]
[1609843440051,0.10019,31280.0,31251.0,0.11338]
[1609843440252,0.10019,31280.0,31264.0,0.13632608]
[1609843440852,0.10019,31280.0,31251.0,0.11338]
[1609843442256,0.13632608,31252.0,31251.0,0.24970608]
[1609843445660,0.13906,31269.0,31251.0,0.24970608]
[1609843446262,0.13632608,31252.0,31251.0,0.24970608]
[1609843450569,0.13632608,31252.0,31251.0,0.11338]
[1609843450770,0.13632608,31252.0,31237.0,2.14460338]
[1609843450971,0.13632608,31252.0,31236.0,2.14414725]
[1609843452176,0.13632608,31252.0,31229.0,2.1449277]
[1609843452374,0.13632608,31230.0,31229.0,2.1449277]
[1609843452774,0.13632608,31230.0,31216.0,2.14372221]
[1609843453574,0.13632608,31230.0,31211.0,2.14405837]